Cogmind - Beta 11.1 @@@ ROGUE MODE // 2022.09.21 @ 13:17:44 Player: Zirov Result: Destroyed by D-53 Grenadier with Mini Grenade Launcher Performance ------------- Evolutions (0) 0 Regions Visited (4) 800 Robots Destroyed (30) 150 Value Destroyed (563) 563 Prototype IDs (4) 80 Alien Tech Used (0) 0 Bonus (148) 148 TOTAL SCORE: 1741 Bonus ------- Aligned with FarCom 300 Friendly Fire -152 Cogmind --------- Core Integrity 0/250 Matter 295/300 Energy 247/250 System Corruption 0% Temperature Cool (1) Movement Walking (130) Location -9/Mines Parts ------- > --- POWER (1) -------- Ion Engine > --- PROPULSION (2) --- Aluminum Leg Makeshift Leg > --- UTILITY (2) ------ Medium Storage Unit Weight Redist. System > --- WEAPON (2) ------- Mining Claw > --- INVENTORY (10) --- Light Ion Engine Light Nuclear Core Improved Heat Sink Large Storage Unit Superbattery (1500) High-capacity Matter Pod (200) Experimental Sensor Array Makeshift Hacking Suite Tractor Beam Light Cannon Peak State ------------ > --- POWER ------------ Light Ion Engine > --- PROPULSION ------- Aluminum Leg Aluminum Leg > --- UTILITY ---------- Medium Storage Unit Superbattery > --- WEAPON ----------- Grenade Launcher Mining Claw > --- INVENTORY -------- Light Ion Engine Aluminum Leg Improved Heat Sink Large Storage Unit High-capacity Matter Pod Weight Redist. System Experimental Sensor Array Tractor Beam Light Cannon Grenade Launcher [Rating: 18] Favorites ----------- Power Light Ion Engine Engine Light Ion Engine Propulsion Aluminum Leg Leg Aluminum Leg Utility Medium Storage Unit Device Weight Redist. System Storage Medium Storage Unit Weapon Assault Rifle Ballistic Gun Assault Rifle Launcher Grenade Launcher Slashing Weapon Mining Claw Build | -11 -10 -10 -10 -9 ------- Run | Scr Mat Min Exi Min Slots Evolved . | . . . . . Power . | . . . . . Propulsion . | . . . . . Utility . | . . . . . Weapon . | . . . . . Parts Attached 36 | 6 16 6 2 6 Power 6 | 1 2 2 . 1 Engine 6 | 1 2 2 . 1 Core . | . . . . . Reactor . | . . . . . Propulsion 9 | 2 3 1 . 3 Treads . | . . . . . Leg 9 | 2 3 1 . 3 Wheel . | . . . . . Hover . | . . . . . Flight . | . . . . . Utility 9 | 1 5 1 2 . Device 6 | . 4 1 1 . Storage 3 | 1 1 . 1 . Processor . | . . . . . Hackware . | . . . . . Protection . | . . . . . Artifact . | . . . . . Weapon 12 | 2 6 2 . 2 Energy Gun . | . . . . . Energy Cannon . | . . . . . Ballistic Gun 6 | 2 4 . . . Ballistic Cannon . | . . . . . Launcher 5 | . 2 1 . 2 Special Weapon . | . . . . . Impact Weapon . | . . . . . Slashing Weapon 1 | . . 1 . . Piercing Weapon . | . . . . . Special Melee Weapon . | . . . . . Unidentified Prototypes 1 | . . . 1 . Parts Lost 5 | . 1 . . 4 Power . | . . . . . Propulsion 3 | . 1 . . 2 Utility . | . . . . . Weapon 2 | . . . . 2 Highest Loss Streak 1 | . 1 . . 1 To Critical Strikes . | . . . . . Average Slot Usage (%) 98 | . 97 100 100 97 Engine 14 | . 14 14 14 14 Leg 27 | . 27 28 28 26 Device 12 | . 11 14 14 14 Storage 14 | . 14 14 14 14 Ballistic Gun 11 | . 25 . . . Launcher 8 | . 2 14 14 13 Slashing Weapon 7 | . . 13 14 14 Naked Turns . | . . . . . Heaviest Build 21 | 11 20 21 18 20 Greatest Support 36 | 20 20 26 26 36 Greatest Overweight (x) 1 | . 1 1 . 1 Average Overweight (x) . | . . . . . Largest Inventory Capacity 10 | 8 10 10 10 10 Average Capacity 9 | 7 8 10 10 10 Most Carried 10 | 1 10 10 10 10 Average Carried 8 | . 7 10 9 9 Final Capacity 10 | 8 10 10 10 10 Final Carried 10 | 1 10 10 10 10 Class Distribution -------------------- 90% | Mutant 9% | Scavenger-Mutant Dominant Class ---------------- Mutant | -10/Materials Mutant | -10/Mines Mutant | -10/Exiles Mutant | -9/Mines Resources | -11 -10 -10 -10 -9 ----------- Run | Scr Mat Min Exi Min Matter Collected 1196 | 206 640 165 . 185 Remotely 223 | . 170 53 . . Salvage Created 867 | . 514 133 . 220 Parts 45 | . 16 14 . 15 Haulers Intercepted 2 | . 2 . . . Recyclers Shooed 1 | . . 1 . . Parts Field Recycled . | . . . . . Retrieved Matter . | . . . . . Parts Self-Destructed . | . . . . . Prevented . | . . . . . Kills | -11 -10 -10 -10 -9 ------- Run | Scr Mat Min Exi Min Combat Hostiles Destroyed 18 | . 9 3 . 6 Melee 3 | . . 1 . 2 Guns 4 | . 4 . . . AOE 11 | . 5 2 . 4 Classes Destroyed 8 | . 5 2 . 1 Worker 5 | . . 3 . 2 Tunneler 2 | . . 1 . 1 Hauler 2 | . 2 . . . Recycler 3 | . 2 . . 1 Watcher 2 | . 2 . . . Swarmer 3 | . 3 . . . Grunt 13 | . 6 3 . 4 Assembled 3 | . . . . 3 Best Kill Streak 5 | . 4 4 . 5 Combat Bots Only 3 | . 3 2 . 3 Max Kills in Single Turn 2 | . 2 2 . 2 Gunslinging . | . . . . . Exploded 2 | . 2 1 . 1 Melee 1 | . . 1 . 1 Uniques/NPCs Destroyed . | . . . . . Combat | -11 -10 -10 -10 -9 -------- Run | Scr Mat Min Exi Min Damage Taken 1171 | . 486 74 . 611 Core 252 | . 109 11 . 132 Absorbed by Shields . | . . . . . Core Remaining (%) 100 | 100 . . . . Volleys Fired 75 | . 57 5 . 13 Largest 2 | . 2 1 . 1 Hottest 50 | . 50 30 . 30 Shots Fired 118 | . 100 5 . 13 Gun 93 | . 93 . . . Cannon . | . . . . . Launcher 25 | . 7 5 . 13 Special . | . . . . . Kinetic 93 | . 93 . . . Thermal . | . . . . . Explosive 25 | . 7 5 . 13 Electromagnetic . | . . . . . Robot Hit Streak 9 | . 9 6 . 2 Robot Miss Streak 5 | . 5 . . 3 Penetration Max . | . . . . . Secondary Targets . | . . . . . Shots Hit Robots 80 | . 58 10 . 12 Core Hits 60 | . 27 11 . 22 Critical Kills . | . . . . . Critical Parts Destroyed 1 | . 1 . . . Critical Strikes 1 | . 1 . . . Destroy 1 | . 1 . . . Melee Attacks 24 | . . 15 . 9 Impact . | . . . . . Slashing 24 | . . 15 . 9 Piercing . | . . . . . Sneak Attacks 5 | . . 3 . 2 Combat Hostiles . | . . . . . Follow-up Attacks . | . . . . . Damage Inflicted 2193 | . 1085 463 . 645 Guns 717 | . 717 . . . Cannons . | . . . . . Explosions 1194 | . 368 366 . 460 Melee 282 | . . 97 . 185 Ramming . | . . . . . Kinetic 717 | . 717 . . . Thermal . | . . . . . Explosive 1194 | . 368 366 . 460 Electromagnetic . | . . . . . Impact . | . . . . . Slashing 282 | . . 97 . 185 Piercing . | . . . . . Highest Corruption . | . . . . . Average Corruption . | . . . . . Corruption Purged . | . . . . . Corruption Blocked . | . . . . . Overload Shots . | . . . . . Overflow Damage 3 | . . . . 3 Projectiles . | . . . . . Explosions 3 | . . . . 3 Melee . | . . . . . Knockbacks . | . . . . . Impact . | . . . . . Kinetic . | . . . . . Secondary . | . . . . . Self-Inflicted Damage 313 | . 134 2 . 177 Shots 12 | . 5 1 . 6 Rammed . | . . . . . Targets Rammed . | . . . . . Kicked . | . . . . . Crushed . | . . . . . Highest Temperature 11 | . 10 7 . 11 Average Temperature 4 | . 4 3 . 5 Received Heat Transfer 297 | . 195 42 . 60 Siege Activations . | . . . . . Robots Corrupted . | . . . . . Combat Hostiles . | . . . . . Parts Fried . | . . . . . Impact Corruptions . | . . . . . Robots Melted . | . . . . . Combat Hostiles . | . . . . . Parts Melted . | . . . . . Heat Transferred . | . . . . . Parts Sabotaged . | . . . . . Parts Stolen . | . . . . . Parts Stripped . | . . . . . Power Chain Reactions . | . . . . . Missiles Intercepted . | . . . . . Alert | -11 -10 -10 -10 -9 ------- Run | Scr Mat Min Exi Min Peak Influence 333 | . 333 193 . 207 Initial 14 | . . 14 . . Average 94 | . 113 84 . 74 Maximum Alert Level 1 | . 1 . . 1 Low Security (%) 85 | 100 78 100 . 79 Level 1 14 | . 21 . . 20 Level 2 . | . . . . . Level 3 . | . . . . . Level 4 . | . . . . . Level 5 . | . . . . . High Security . | . . . . . Max Security . | . . . . . Squads Dispatched 1 | . 1 . . . Investigation . | . . . . . Extermination . | . . . . . Reinforcement 1 | . 1 . . . Assault . | . . . . . Garrison . | . . . . . Intercept . | . . . . . Searches Triggered . | . . . . . Construction Impeded . | . . . . . Haulers Reinforced . | . . . . . Active Scanning Responses . | . . . . . Cargo Convoy Interrupts . | . . . . . Stealth | -11 -10 -10 -10 -9 --------- Run | Scr Mat Min Exi Min Distress Signals 2 | . 1 . . 1 Communications Jammed . | . . . . . Distress Signals . | . . . . . Times Spotted 37 | . 22 4 . 11 Peak Tracking Total 5 | . 4 2 . 5 Tactical Retreats 2 | . . . . 2 Traps | -11 -10 -10 -10 -9 ------- Run | Scr Mat Min Exi Min Traps Triggered . | . . . . . Indirectly . | . . . . . Trap Hack Attempts . | . . . . . Triggered . | . . . . . Disarmed . | . . . . . Reprogrammed . | . . . . . Reused . | . . . . . Traps Extracted . | . . . . . Installed . | . . . . . Triggered . | . . . . . Exploded 2 | . . . 2 . Machines | -11 -10 -10 -10 -9 ---------- Run | Scr Mat Min Exi Min Machines Disabled . | . . . . . Max in Single Turn . | . . . . . Machines Sabotaged . | . . . . . Garrisons Compromised . | . . . . . Overloaded Fab Kills . | . . . . . Hacking | -11 -10 -10 -10 -9 --------- Run | Scr Mat Min Exi Min Machines Accessed 7 | . 6 1 . . Terminals 6 | . 5 1 . . Fabricators . | . . . . . Repair Stations . | . . . . . Recycling Units 1 | . 1 . . . Scanalyzers . | . . . . . Garrison Access . | . . . . . Total Hacks 22 | . 17 5 . . Successful 9 | . 8 1 . . Failed 13 | . 9 4 . . Catastrophic 4 | . 3 1 . . Database Lockouts . | . . . . . Manual 9 | . 4 4 1 . Terminals 18 | . 13 5 . . Fabricators . | . . . . . Repair Stations . | . . . . . Recycling Units 4 | . 4 . . . Scanalyzers . | . . . . . Garrison Access . | . . . . . Terminal Hacks 6 | . 5 1 . . Prototype ID Bank 2 | . 2 . . . Alert Level 1 | . 1 . . . Locate Traps 1 | . 1 . . . Hauler Manifests 1 | . 1 . . . Zone Layout 1 | . . 1 . . Fabricator Hacks . | . . . . . Repair Station Hacks . | . . . . . Recycling Unit Hacks 3 | . 3 . . . Process 1 | . 1 . . . Report Inventory 1 | . 1 . . . Retrieve Matter 1 | . 1 . . . Scanalyzer . | . . . . . Garrison Access Hacks . | . . . . . Unauthorized Hacks . | . . . . . Terminals . | . . . . . Fabricators . | . . . . . Repair Stations . | . . . . . Recycling Units . | . . . . . Scanalyzers . | . . . . . Garrison Access . | . . . . . Data Cores Recovered . | . . . . . Used . | . . . . . Hacking Detections 7 | . 6 1 . . Full Trace Events 2 | . 2 . . . Feedback Events . | . . . . . Feedback Blocked . | . . . . . Robot Schematics Acquired . | . . . . . Robots Built . | . . . . . Authchips . | . . . . . Time . | . . . . . Total Robot Build Rating . | . . . . . Part Schematics Acquired . | . . . . . Parts Built . | . . . . . Authchips . | . . . . . Time . | . . . . . Total Part Build Rating . | . . . . . Parts Repaired . | . . . . . Time . | . . . . . Parts Recycled . | . . . . . Recycled Matter 47 | . 47 . . . Retrieved Matter 47 | . 47 . . . Retrieved Components . | . . . . . Parts Scanalyzed . | . . . . . Part Schematics Acquired . | . . . . . Parts Damaged . | . . . . . Bothacking | -11 -10 -10 -10 -9 ------------ Run | Scr Mat Min Exi Min Used RIF Installer . | . . . . . Robots Hacked . | . . . . . Non-combat . | . . . . . Combat . | . . . . . Robot Hacks Applied . | . . . . . Relay Couplers Released . | . . . . . Fabnet Peak Effective % . | . . . . . Robots Rewired . | . . . . . Allies Hacked . | . . . . . Hacks Repelled . | . . . . . Allies | -11 -10 -10 -10 -9 -------- Run | Scr Mat Min Exi Min Total Allies 5 | . . . . 5 Largest Group 3 | . . . . 3 Highest-Rated Group 47 | . . . . 47 Highest-Rated Ally 31 | . . . . 31 Total Orders . | . . . . . Ally Attacks 20 | . . . . 20 Total Damage 257 | . . . . 257 Kills 6 | . . . . 6 Allies Corrupted . | . . . . . Allies Melted . | . . . . . Intel | -11 -10 -10 -10 -9 ------- Run | Scr Mat Min Exi Min Robot Analysis Total . | . . . . . Derelict Logs Recovered 3 | . . 2 . 1 Drone Launches . | . . . . . Drone Recoveries . | . . . . . Exploration | -11 -10 -10 -10 -9 ------------- Run | Scr Mat Min Exi Min Turns Passed 2955 | 61 1298 759 289 548 Spaces Moved 2006 | 45 804 553 222 382 Core 3 | 3 . . . . Treads . | . . . . . Legs 2003 | 42 804 553 222 382 Wheels . | . . . . . Hover . | . . . . . Flight . | . . . . . Fastest Speed 50 | 50 120 120 120 120 Average Speed 122 | 115 120 122 120 126 Slowest Speed 190 | 120 190 190 120 190 Overloaded Moves . | . . . . . Propulsion Burnouts . | . . . . . Robots Hopped . | . . . . . Cave-ins Triggered . | . . . . . Exploration Rate (%) 64 | 4 93 99 60 66 Regions Visited 4 Branch Regions 3 Pre-discovered Areas 1 | . . 1 . . Known Exits Taken . | . . . . . Unknown Exits Taken 4 | 1 1 1 1 . Scrap Searched 3 | . . 1 . 2 Spaces Dug . | . . . . . Terrain Destroyed 177 | . 50 29 . 98 Melee . | . . . . . Projectile . | . . . . . AOE 177 | . 50 29 . 98 Terrain Rammed . | . . . . . Walls Destroyed . | . . . . . Machines Disabled . | . . . . . Actions | -11 -10 -10 -10 -9 --------- Run | Scr Mat Min Exi Min Total 2348 | 51 1041 598 244 414 Wait 175 | . 141 15 19 . Move 2002 | 44 803 552 221 382 Hop . | . . . . . Pick Up 18 | 1 13 1 1 2 Fast Attach 11 | 6 2 1 . 2 Attach 2 | . . . . 2 Detach . | . . . . . Swap 23 | . 14 5 2 2 Drop 18 | . 11 4 1 2 Fire 75 | . 57 5 . 13 Melee 24 | . . 15 . 9 Ram . | . . . . . Kick . | . . . . . Crush . | . . . . . Escape Stasis . | . . . . . Rewire . | . . . . . Trap . | . . . . . Miscellaneous . | . . . . . Route ------- -11/Scrapyard -10/Materials (discovered 4 exits: [*Mat x3] / *Min) -10/Mines (discovered 3 exits: [*Mat x2] / *Exi) -10/Exiles -9/Mines History --------- Turn | Location | Event 6 | -11/Scrapyard | Discovered new exit (range 16) 62 | -11/Scrapyard | Entered Materials 213 | -10/Materials | Discovered new exit (range 16) 319 | -10/Materials | Build established: Mutant 404 | -10/Materials | Discovered new exit (range 16) 939 | -10/Materials | Discovered new exit (range 7) 1217 | -10/Materials | Discovered new exit (range 11) 1360 | -10/Materials | Entered Mines 1365 | -10/Mines | Discovered new exit (range 7) 1452 | -10/Mines | Excavation squad dispatched 1452 | -10/Mines | A large section of the Mines collapsed 1633 | -10/Mines | Deemed a non-threat by the Exiles lab entrance 1633 | -10/Mines | Discovered new exit (range 5) 1701 | -10/Mines | YI-UF0 nonchalantly dropped a Grenade Launcher on the ground 1736 | -10/Mines | Discovered new exit (range 13) 1880 | -10/Mines | Found a damaged Exp. Sensor Array with a note attached 1883 | -10/Mines | Found Prototype Device 1938 | -10/Mines | Learned 2 Materials zone layouts 2119 | -10/Mines | Entered Exiles 2148 | -10/Exiles | Met 8R-AWN 2177 | -10/Exiles | Met EX-HEX 2210 | -10/Exiles | Met EX-BIN 2228 | -10/Exiles | Aligned with FarCom system 2230 | -10/Exiles | Given EX-Vault access code 2260 | -10/Exiles | Opened EX-Vault 2276 | -10/Exiles | Found Prototype Storage 2277 | -10/Exiles | Identified Superbattery 2318 | -10/Exiles | Warned to stay clear of 0b10 Research branches 2325 | -10/Exiles | Exiles lab attacked by MAIN.C 2399 | -10/Exiles | Discovered new exit (range 10) 2408 | -10/Exiles | Left Exiles lab with Superbattery 2408 | -10/Exiles | Entered Mines 2588 | -9/Mines | Assembled infested the area 2593 | -9/Mines | Assisted by a Guerilla fighting off Assembled 2608 | -9/Mines | Core integrity fell below 50% 2710 | -9/Mines | Learned location of 1 exit from Proximity Caves 2930 | -9/Mines | Assisted by bots powering up and referring to "LRC-V3" 2956 | -9/Mines | Destroyed by D-53 Grenadier with Mini Grenade Launcher Last Messages --------------- 02853_ Acquired 38 matter. 02854_ Acquired 22 matter. 02857_ Acquired Lgt. Nuclear Core. 02884_ R-06 Scavenger collects Sml. Storage Unit. 02894_ Dropped Aluminum Leg. 02896_ Sneak attack on R-06 Scavenger. 02896_ R-06 Scavenger destroyed. 02899_ Dropped Lgt. Ion Engine. 02901_ Acquired Mak. Hacking Suite. 02903_ Acquired 10 matter. 02930_ Trooper 2a: "Hello LRC-V3. What is your command?" 02930_ Mercenary 2a: "Hello LRC-V3. What is your command?" 02930_ Trooper 2b: "Hello LRC-V3. What is your command?" 02949_ Mercenary 2a destroyed. 02952_ Trooper 2a destroyed. [Achievement: Backstab] 02954_ R-06 Scavenger destroyed. 02954_ Trooper 2b destroyed. 02954_ Grenade Launcher destroyed. 02954_ T-07 Excavator destroyed. Map ----- +----------------------------------------------------+ | ##### #?????# #???????????????????????????????? | | ?# #?????## ##???????????????????????????????? | | ?# ####??????####????????????????????????????????? | | ?# #?????????????????????????????????????????????? | | ## #?????????????????????????????????????????????? | | #?????????????????????????????#???????????????? | | ####???????????????????????????? #???????????????? | | ????????????????????????????????=#?? ??????????? | | ???????????????????????????????#%## ! ????????? | | ??????????????????????????????# ! # =????????? | | ######?????????????????????### ! !% % ???????? | | # #?????????????????????# %=! |! ?????????? | | # #????????????????????? !%== |??????????? | | #????????????????????? =*%!*!???????????? | | ##????????????????????# =%t#????????????? | | ##??????????????????## =*#?????????????? | | #?????????????????## %#??????????????? | | ##????????????????# #??????????????? | | #?????####???????# !dd #???????????????? | | ######## ##??????# = #???????????????? | | # ##?##### ##??????????????? | | ## % **### # %* #??????????????? | | ## ##### =*%*## ==! #???????????????? | | # ## ##??##[%!%%#% * #???????????????? | | ## # ##??##= ==%% ! #????????????????? | | ?## #???#!%!= % @ = #?????????????????? | | ??#### %[ #???#*|%% #?????????????????? | | ?????##| #######!!!% #?????????????????? | | ??????## ##?# |%%! #?????????????????? | | ###??#?####??# = ###?????????????????? | | ???????# ### #######???????????????????? | | ????? #??????# #?## #?????????????????????????? | | ????? #?????## ##?# ##????????????????????????? | | ????? #????## #?# ###??????????????????????? | | ????# #???## #?# ##?????????????????????? | | ????# #???# #?## #?????????????????????? | | ????# #???# ##??# #?????????????????????? | | ????# #?### ###???## ##?????????????????????? | | ##### ### %= ##??????######??????????????????????? | | # # # *=!##???????????????????????????????????? | | ## # ##????????????????????????????????????? | | # #?????????????????????????????????????? | | =* #?????????????????????????????????????? | | = # #?????????????????????????????????????? | | #####?????????????????????????????????????? | | ##????????????????????????????????????????? | | #????????????????????????????????????????? | | # #????????????????????????????????????????? | | ##????????????????????????????????????????? | | ##?????????????????????????????????????????? | +----------------------------------------------------+ Best States ------------- Heat Dissipation 39 Energy Generation 10 Energy Capacity 250 Matter Stores 300 Matter Capacity 300 Sight Range 16 Terrain Scan Density 10 Additional Mass Support 6 Evasion (%) 55 Item Schematics ----------------- None Robot Schematics ------------------ None Fabricated ------------ Nothing Alien Tech Used ----------------- None Achievements -------------- Backstab Challenges ------------ None Game ------ Seed ThunderBombMinigun Manual? 0 Play Time 00:33:56 Cumulative 14.1 hours Start 2022.09.21 @ 12:44:26 End 2022.09.21 @ 13:17:44 Sessions 1 Manual Loads 0 Difficulty Rogue Special Mode None Game No. 15 Rogue 15 Adventurer 0 Explorer 0 Win Type - Total 0 Types 0/0/0/0/0/0/0/0/0 Lore% 11 Gallery% 18 Achievement% 19 Wizard Run 0 Options --------- ASCII 1 Keyboard 1 Movement Numpad Keybinds 0 Fullscreen 1 Font 18/SmallcapsGlow Map View 76x50 Tactical HUD 1 Map Filters NONE Filters NONE Steam 1 RUN: 0e849b69-10c5-4f45-9163-65c0c5e1a5a5